[Event "FIDE World School-ch O-17 2025"]
[Site "Vrnjacka Banja"]
[Date "2025.03.27"]
[Round "8.1"]
[White "Bogdanov, Artyom"]
[Black "Topuz, Mirac Melih"]
[Result "1-0"]
[Annotator "TA"]
[ECO "B48"]
[WhiteElo "2373"]
[BlackElo "2113"]
[PlyCount "161"]
[EventDate "2025.03.19"]
[EventType "swiss"]
[EventCountry "SRB"]
[SourceTitle "playchess.com"]
[Source "ChessBase"]
[SourceQuality "1"]
[TimeControl "5400+30"]

{[%evp 11,161,38,53,38,32,16,24,6,55,45,37,55,56,59,60,16,7,4,9,0,4,0,0,0,6,6,12,4,4,4,11,0,12,0,6,6,6,0,6,0,0,0,0,0,5,0,0,0,0,0,0,0,0,0,0,0,0,0,16,0,20,18,5,8,23,9,127,136,133,119,121,89,112,119,146,153,151,120,228,182,302,302,304,306,309,306,334,330,340,337,359,360,392,366,364,322,318,314,325,304,305,294,281,0,313,297,382,353,347,345,334,307,333,310,323,310,310,313,480,448,450,438,390,390,387,375,375,373,559,570,3221,3751,4141,4141,29982,29983,29983,29984,29984,29985,29985,29986,29986,29987,29989,29990,29990,29986,29986,29986,29986,29984]} 1. e4 {[%emt 0:00:03]} c5 {[%emt 0:00:05]} 2. Nf3 {[%emt 0:00:04]} e6 {[%emt 0:00:03]} 3. d4 {[%emt 0:00:06]} cxd4 {[%emt 0:00:01]} 4. Nxd4 {[%emt 0:00:05]} Nc6 {[%emt 0:00:04]} 5. Nc3 {[%emt 0:00:04]} Qc7 {[%emt 0:00:05]} 6. Be3 {[%emt 0:00:04]} a6 {[%emt 0:00:21]} 7. Qf3 {[%emt 0:00:38] B48: Sicilian: Taimanov: 5 Nc3 Qc7 6 Be3 a6 without Be2.} Bd6 {[%emt 0:00:22]} 8. Nxc6 {[%emt 0:06:16]} bxc6 {[%emt 0:00:18]} 9. Bd4 {[%emt 0:06:12] White has an edge.} Be5 {[%emt 0:00:29]} (9... Nf6 $11) 10. Bxe5 $14 {[%emt 0:01:18]} Qxe5 {[%emt 0:00:02]} 11. Qg3 {[%emt 0:01:17]} Qxg3 {[%emt 0:00:02]} 12. hxg3 {[%emt 0:00:09]} d5 {[%emt 0:00:11]} 13. Bd3 {[%emt 0:02:45]} Nf6 {[%emt 0:03:23]} 14. f3 {[%emt 0:04:02]} h6 {[%emt 0:14:51]} 15. g4 {[%emt 0:05:10]} Rg8 {[%emt 0:00:01]} 16. O-O-O {[%emt 0:02:26]} Ke7 $146 {[%emt 0:01:38]} (16... a5 17. Na4 Nd7 18. c4 Bb7 19. Rhe1 Ke7 20. exd5 cxd5 21. cxd5 Bxd5 22. Nc3 Bc6 {1-0 Durarbayli,V (2627)-Barbosa,E (2490) Titled Tuesday intern op 26th Mar Early blitz 2024 (2)}) 17. Rhe1 {[%emt 0:05:39]} Bb7 {[%emt 0:06:13]} 18. Na4 {[%emt 0:03:14]} Nd7 {[%emt 0:07:33]} 19. Bf1 {[%emt 0:09:23]} Rgd8 {[%emt 0:14:35]} 20. b3 {[%emt 0:06:22]} a5 {[%emt 0:12:53]} 21. Rd2 {[%emt 0:02:46]} Rac8 {[%emt 0:01:57][%cal Ba8c8,Bc8b8,Bb8b4][%mdl 32]} 22. Kb2 {[%emt 0:08:41]} Ba8 {[%emt 0:10:19]} 23. Ba6 {[%emt 0:01:37]} Rb8 {[%emt 0:01:02]} 24. Kc1 {[%emt 0:04:36]} Rb4 {[%emt 0:05:40]} 25. Red1 {[%emt 0:06:42]} Rbb8 {[%emt 0:10:05]} 26. Re1 {[%emt 0:02:07]} Rb4 {[%emt 0:00:07]} 27. c3 {[%emt 0:00:16]} Rbb8 {[%emt 0:00:50]} 28. Bd3 {[%emt 0:00:34]} Kf6 {[%emt 0:01:50]} 29. Bc2 {[%emt 0:00:52]} Ke7 {[%emt 0:02:22]} 30. Red1 {[%emt 0:00:54]} Bb7 {[%emt 0:02:23]} 31. Re1 {[%emt 0:05:26]} Kf6 {[%emt 0:00:36]} 32. Bd3 {[%emt 0:00:29]} Ba8 {[%emt 0:00:41]} 33. Kc2 {[%emt 0:01:00][%cal Bc1c2,Bc2d2,Bd2e3][%mdl 32]} Rh8 {[%emt 0:03:09]} 34. Rh1 {[%emt 0:00:58]} Rbd8 {[%emt 0:02:08]} 35. Rdd1 {[%emt 0:03:36]} Rb8 {[%emt 0:00:23]} 36. Kd2 {[%emt 0:01:24]} Rhd8 {[%emt 0:00:55]} 37. Ke3 {[%emt 0:00:42]} Bb7 {[%emt 0:00:50]} 38. c4 {[%emt 0:01:38]} c5 {[%emt 0:00:29]} (38... Ke7 $11) 39. exd5 {[%emt 0:01:21]} exd5 {[%emt 0:00:06]} 40. cxd5 {[%emt 0:00:16]} Bxd5 {[%emt 0:00:30]} 41. Bf5 {[%emt 0:01:50]} Nb6 {[%emt 0:00:55]} 42. Nxc5 {[%emt 0:00:47] White is more active.} Bc6 {[%emt 0:00:32] Prevents Nd7+.} 43. Rxd8 {[%emt 0:01:05]} Rxd8 {[%emt 0:00:01]} 44. Rc1 {[%emt 0:00:07]} Bb5 {[%emt 0:00:53]} (44... Ke7 $16 45. g3 g6) 45. a4 {[%emt 0:01:32]} Nd5+ {[%emt 0:00:28]} (45... Bc6 $142 46. Ne4+ Bxe4) 46. Kf2 $18 {[%emt 0:00:24]} Be8 {[%emt 0:00:09]} 47. Nb7 $1 {[%emt 0:00:39][%csl LRa5,LRd8]} Rb8 {[%emt 0:00:34]} 48. Nxa5 {[%emt 0:00:13]} g6 {[%emt 0:00:42]} 49. Be4 {[%emt 0:00:33]} Nf4 {[%emt 0:00:09]} 50. Rc3 {[%emt 0:00:40]} Rd8 {[%emt 0:00:18]} 51. Nc4 {[%emt 0:00:58]} Rd1 {[%emt 0:00:19]} 52. g3 {[%emt 0:00:48]} Nh3+ {[%emt 0:00:11]} 53. Kg2 {[%emt 0:00:43]} Ng5 {[%emt 0:00:09]} 54. Bb7 {[%emt 0:00:53]} Ra1 {[%emt 0:00:17]} 55. Rc2 {[%emt 0:00:28]} Rb1 {[%emt 0:00:15]} 56. Nd2 {[%emt 0:00:31]} Ra1 {[%emt 0:01:07]} 57. Nc4 $2 {[%emt 0:00:25]} (57. f4 $18 Ne6 58. Ne4+ Kg7 59. Rd2) 57... Bd7 $2 {[%emt 0:00:29][%mdl 8192]} (57... Rb1 $11 {and Black stays safe.}) 58. Bd5 {[%emt 0:01:37]} h5 {[%emt 0:00:29]} 59. gxh5 {[%emt 0:00:15]} Bf5 {[%emt 0:01:12]} 60. Rd2 {[%emt 0:00:39]} gxh5 {[%emt 0:00:10]} 61. Ne3 {[%emt 0:00:35]} Bh3+ {[%emt 0:00:09]} 62. Kh2 {[%emt 0:00:36] and f4 should not be overlooked} Bc8 {[%emt 0:00:46]} 63. f4 {[%emt 0:00:25]} Ne6 {[%emt 0:00:46]} 64. Bg2 {[%emt 0:00:18]} Rb1 {[%emt 0:00:09] [#]} (64... Ra3 $142 65. Nd5+ Kg7) 65. b4 $1 {[%emt 0:01:01]} Rb3 {[%emt 0:00:01]} 66. Nd5+ {[%emt 0:00:18]} Kg7 {[%emt 0:00:00]} 67. Ne7 {[%emt 0:01:36]} h4 {[%emt 0:01:01]} 68. gxh4 {[%emt 0:01:00]} (68. Nxc8 hxg3+ 69. Kg1 Rxb4 $16) 68... Rxb4 {[%emt 0:00:05]} 69. Nxc8 {[%emt 0:00:05]} Rxa4 {[%emt 0:01:23]} (69... Rxf4 {was called for.} 70. Ra2 Rxh4+ 71. Kg1 Rh5) 70. f5 {[%emt 0:00:14][%cal Bf4f5,Bf5e6,Be6f7][%mdl 32]} Rxh4+ {[%emt 0:00:22]} 71. Kg3 {[%emt 0:00:21]} Rc4 {[%emt 0:00:17]} 72. fxe6 {[%emt 0:01:07]} Rxc8 {[%emt 0:00:03][%mdl 4096] Endgame [#] KRB-KR} 73. Rd7 $1 {[%emt 0:00:05] White mates.} Kf6 {[%emt 0:01:16]} 74. exf7 {[%emt 0:00:19]} ({Not} 74. e7 Re8 $11) 74... Rc3+ {[%emt 0:00:38]} 75. Kf4 {[%emt 0:00:37]} Rc4+ {[%emt 0:00:50]} 76. Be4 {[%emt 0:00:08]} Rc8 {[%emt 0:00:06]} 77. Bd5 {[%emt 0:00:11]} Rb8 {[%emt 0:00:04]} 78. Rd6+ {[%emt 0:00:13]} Ke7 {[%emt 0:00:10]} 79. Ke5 {[%emt 0:00:09]} Rh8 {[%emt 0:00:17]} 80. Rg6 {[%emt 0:00:36]} Rh5+ {[%emt 0:00:07]} 81. Ke4 {[%emt 0:04:47] Weighted Error Value: White=0.13 (very precise) /Black=0.26 (precise)   Loses game:     	---       	Black=1      Missed win:     	White=1     	---        Mistake:       	---       	Black=6      Inaccurate:     	White=1     	Black=1      OK:         	White=31    	Black=21     Best:        	White=3     	Black=3} 1-0

[Event "FIDE World School-ch O-17 2025"]
[Site "Vrnjacka Banja"]
[Date "2025.03.27"]
[Round "8.2"]
[White "Kazhmuratov, Altair"]
[Black "Ljepic, Andrej"]
[Result "0-1"]
[Annotator "TA"]
[ECO "A37"]
[WhiteElo "1971"]
[BlackElo "2337"]
[PlyCount "92"]
[EventDate "2025.03.19"]
[EventType "swiss"]
[EventCountry "SRB"]
[SourceTitle "playchess.com"]
[Source "ChessBase"]
[SourceQuality "1"]
[TimeControl "5400+30"]

{[%evp 12,92,0,-23,-24,-20,-24,-49,-50,-49,-57,-129,-120,-127,-125,-134,-133,-122,-136,-132,-129,-118,-125,-123,-138,-124,-133,-149,-147,-176,-177,-244,-183,-260,-229,-374,-287,-393,-370,-608,-613,-635,-559,-554,-552,-551,-544,-691,-690,-669,-643,-643,-643,-679,-678,-688,-681,-845,-847,-945,-856,-958,-963,-1154,-869,-1193,-1157,-1836,-1787,-1648,-968,-968,-968,-5257,-3877,-5700,-6688,-6194,-6187,-6079,-5736,-2042,-1956]} 1. g3 {[%emt 0:00:10]} c5 {[%emt 0:04:48]} 2. Bg2 {[%emt 0:00:16]} g6 {[%emt 0:00:20]} 3. Nf3 {[%emt 0:01:00]} Bg7 {[%emt 0:00:14]} 4. O-O {[%emt 0:02:09]} Nc6 {[%emt 0:00:47]} 5. c4 {[%emt 0:03:18]} e6 {[%emt 0:00:27]} 6. Nc3 {[%emt 0:08:40]} Nge7 {[%emt 0:00:48]} 7. Ne4 {[%emt 0:13:54]} d6 {[%emt 0:01:56][%cal Bd7d6,Bd6d5][%mdl 32] A37: Symmetrical English vs ...g6: 4 Bg2 Bg7 5 Nf3.} 8. e3 {[%emt 0:05:39]} O-O {[%emt 0:04:48]} 9. Rb1 {[%emt 0:04:16]} b6 {[%emt 0:09:11] Black is slightly better.} 10. d4 $146 {[%emt 0:01:53]} (10. d3 d5 11. Ned2 Nb4 12. Qb3 a5 13. a4 Ba6 14. Ne1 Ra7 15. Nc2 dxc4 16. dxc4 {0-1 Pang,T (2193)-Deng,T (2105) Asian Continental op 16th 2017 (4)}) 10... d5 {[%emt 0:12:26]} 11. Nc3 {[%emt 0:09:10]} (11. cxd5 $15 exd5 12. Nc3) 11... cxd4 {[%emt 0:05:59]} (11... dxc4 12. dxc5 bxc5 13. Qa4 $15) 12. Nxd4 {[%emt 0:02:28]} Nxd4 {[%emt 0:01:01]} 13. exd4 {[%emt 0:00:05]} Ba6 {[%emt 0:00:56]} 14. cxd5 {[%emt 0:12:25]} Bxf1 {[%emt 0:03:10]} (14... Nxd5 15. Bxd5 exd5 16. Re1 $11) 15. Qxf1 {[%emt 0:00:01]} Nxd5 {[%emt 0:01:09]} 16. Nxd5 {[%emt 0:00:09]} exd5 {[%emt 0:00:06]} 17. Be3 {[%emt 0:00:12]} Qd7 {[%emt 0:03:19]} 18. Rd1 {[%emt 0:05:22]} Rfd8 {[%emt 0:04:54]} 19. Qa6 {[%emt 0:02:44]} Rac8 {[%emt 0:03:54]} 20. h3 {[%emt 0:00:10]} h5 {[%emt 0:03:45]} 21. Rd3 {[%emt 0:03:42]} (21. Qa3 {was called for.}) 21... Rc4 {[%emt 0:05:46]} 22. b3 {[%emt 0:02:46] Prevents Ra4} (22. Qa3 $142) 22... Rc2 $19 {[%emt 0:02:23]} 23. h4 {[%emt 0:00:28]} (23. Rd1 $142) 23... Kh7 {[%emt 0:03:21]} 24. Bf4 {[%emt 0:02:30]} Re8 {[%emt 0:04:28]} 25. Bf1 $2 {[%emt 0:05:17]} (25. Rd2 Rxd2 26. Bxd2) 25... Re1 {[%emt 0:03:03] Black is clearly winning.} 26. Kg2 {[%emt 0:00:40] Prevents Qh3+.} Ra1 {[%emt 0:02:02]} 27. Rf3 {[%emt 0:02:30]} Raxa2 {[%emt 0:02:01]} (27... Bxd4 $2 28. Qd3 Rb2 (28... Rcxa2 $2 {loses.} 29. Qxd4 Re1 30. Re3 $18) 29. Qxd4 $19) 28. Qd3 {[%emt 0:00:07]} Qe6 {[%emt 0:03:23]} 29. Qd1 {[%emt 0:04:19] Inhibits Qe1.} Qe4 {[%emt 0:06:46]} 30. Be3 {[%emt 0:00:08]} Rc3 {[%emt 0:00:47] Dodges Bd3} 31. Kg1 {[%emt 0:02:16]} f5 {[%emt 0:01:23]} 32. Bg2 {[%emt 0:05:04]} Qc2 {[%emt 0:01:29]} 33. Qxc2 {[%emt 0:00:14]} Raxc2 {[%emt 0:00:15]} 34. Rf4 {[%emt 0:00:33]} Bh6 {[%emt 0:00:26]} 35. Bxd5 {[%emt 0:00:56]} Bxf4 {[%emt 0:00:18]} 36. Bxf4 {[%emt 0:00:01]} Rd3 {[%emt 0:01:06]} 37. Be3 {[%emt 0:00:04]} b5 {[%emt 0:01:17] [#] Strongly threatening ...a5.} 38. Be6 {[%emt 0:00:47]} a5 {[%emt 0:00:14]} 39. Bd7 {[%emt 0:00:11]} Rxb3 {[%emt 0:00:24]} 40. d5 {[%emt 0:00:09]} Rd3 {[%emt 0:01:07]} 41. Bxb5 {[%emt 0:00:20]} Rxd5 {[%emt 0:00:06]} 42. Be8 {[%emt 0:00:06]} Re5 {[%emt 0:00:52]} 43. Bd7 {[%emt 0:00:16] [#]} Rxe3 $1 {[%emt 0:00:52]} 44. fxe3 {[%emt 0:00:02]} Re2 {[%emt 0:00:10]} 45. Kf1 {[%emt 0:00:23]} Rxe3 {[%emt 0:00:05]} 46. Kf2 {[%emt 0:00:05]} Ra3 {[%emt 0:00:11] White did not feel at home in the position after the opening.   Weighted Error Value: White=0.50/Black=0.12 (very precise)   Mistake:       	White=5     	---        Inaccurate:     	White=1     	---        OK:         	White=2     	Black=9      Best:        	---       	Black=2} 0-1

[Event "FIDE World School-ch O-17 2025"]
[Site "Vrnjacka Banja"]
[Date "2025.03.27"]
[Round "8.3"]
[White "Elmirzaev, Khondamir"]
[Black "Taran, Egor A"]
[Result "1-0"]
[Annotator "NA RC"]
[ECO "D10"]
[WhiteElo "2036"]
[BlackElo "1961"]
[PlyCount "65"]
[EventDate "2025.03.19"]
[EventType "swiss"]
[EventCountry "SRB"]
[SourceTitle "playchess.com"]
[Source "ChessBase"]
[SourceQuality "1"]
[TimeControl "5400+30"]

1. d4 {[%emt 0:00:42]} d5 {[%emt 0:00:04]} 2. c4 {[%emt 0:00:05]} c6 {[%emt 0:00:03]} 3. cxd5 {[%emt 0:00:03]} cxd5 {[%emt 0:00:04]} 4. Nc3 {[%emt 0:00:05]} Nf6 {[%emt 0:00:05]} 5. Bf4 {[%emt 0:00:04]} Nc6 {[%emt 0:00:15]} 6. e3 {[%emt 0:00:04]} Bf5 {[%emt 0:00:06]} 7. Qb3 {[%emt 0:00:12]} Na5 {[%emt 0:00:04]} 8. Qa4+ {[%emt 0:00:05]} Bd7 {[%emt 0:00:05]} 9. Qc2 {[%emt 0:00:05]} e6 {[%emt 0:00:11]} 10. Bd3 {[%emt 0:00:07]} Rc8 {[%emt 0:00:10]} 11. Nf3 {[%emt 0:00:09]} Bb4 {[%emt 0:00:13]} 12. O-O {[%emt 0:00:09]} O-O {[%emt 0:00:05]} 13. Rfc1 {[%emt 0:00:25]} a6 {[%emt 0:00:05]} 14. h3 {[%emt 0:01:03]} h6 {[%emt 0:03:53]} 15. a3 {[%emt 0:02:31]} Bxc3 {[%emt 0:00:15]} 16. bxc3 {[%emt 0:00:03]} Bb5 {[%emt 0:09:27]} 17. Bxb5 {[%emt 0:03:24]} axb5 {[%emt 0:01:31]} 18. Nd2 {[%emt 0:14:03]} Nc4 {[%emt 0:05:13]} 19. Nxc4 {[%emt 0:00:09]} bxc4 {[%emt 0:00:54]} 20. f3 {[%emt 0:00:41]} Rc6 {[%emt 0:21:03]} 21. Rcb1 {[%emt 0:01:14]} Rb6 {[%emt 0:01:56]} 22. g4 {[%emt 0:10:45]} Rxb1+ {[%emt 0:00:43]} 23. Rxb1 {[%emt 0:03:05]} Qd7 {[%emt 0:07:30]} 24. Rb4 {[%emt 0:01:34]} Ra8 {[%emt 0:05:26]} 25. Qb2 {[%emt 0:02:49]} Qe7 {[%emt 0:14:22]} 26. Kg2 {[%emt 0:06:52]} b5 {[%emt 0:06:30]} 27. Rxb5 {[%emt 0:04:01]} Qxa3 {[%emt 0:02:42]} 28. Rb8+ {[%emt 0:00:43]} Kh7 {[%emt 0:00:05]} 29. Qb1+ {[%emt 0:00:12]} g6 {[%emt 0:00:13]} 30. Qb7 {[%emt 0:01:03]} Ra7 {[%emt 0:09:28]} 31. Qc8 {[%emt 0:00:27]} g5 {[%emt 0:00:09]} 32. Be5 {[%emt 0:00:49]} Qa2+ {[%emt 0:00:46]} 33. Kg3 {[%emt 0:00:08]} 1-0

[Event "FIDE World School-ch O-17 2025"]
[Site "Vrnjacka Banja"]
[Date "2025.03.27"]
[Round "8.4"]
[White "Brankovic, Uros"]
[Black "Adithya A Chullikkad"]
[Result "0-1"]
[Annotator "TA"]
[ECO "B22"]
[WhiteElo "1966"]
[BlackElo "2101"]
[PlyCount "122"]
[EventDate "2025.03.19"]
[EventType "swiss"]
[EventCountry "SRB"]
[SourceTitle "playchess.com"]
[Source "ChessBase"]
[SourceQuality "1"]
[TimeControl "5400+30"]

{[%evp 15,122,-1,42,33,39,20,27,47,46,16,29,20,75,51,55,45,41,47,38,37,46,36,38,31,33,13,15,26,60,52,47,4,13,0,6,0,24,29,35,22,36,17,12,2,126,85,304,299,297,275,287,283,297,276,296,267,279,200,228,182,183,209,320,321,321,321,321,314,306,251,229,238,229,234,262,271,268,235,274,264,267,223,270,277,764,737,1041,1052,1607,1593,29987,29988,1443,526,479,126,147,-29993,-29994,-29994,-29995,-29995,-29996,-29996,-29997,-29997,-29998,-29998,-29999]} 1. e4 {[%emt 0:00:02][%cal Be2e4,Be4e5][%mdl 32]} c5 {[%emt 0:01:11]} 2. c3 {[%emt 0:00:06]} Nf6 {[%emt 0:00:24]} 3. e5 {[%emt 0:00:05]} Nd5 {[%emt 0:00:26]} 4. Nf3 {[%emt 0:00:13]} Nc6 {[%emt 0:00:35]} 5. d4 {[%emt 0:00:14]} cxd4 {[%emt 0:00:29]} 6. cxd4 {[%emt 0:00:25]} d6 {[%emt 0:00:44]} 7. Bc4 {[%emt 0:00:29]} Nb6 {[%emt 0:04:23]} 8. Bb5 {[%emt 0:00:09]} d5 {[%emt 0:03:53]} 9. Nc3 {[%emt 0:00:14] B22: Sicilian: 2 c3.} a6 {[%emt 0:01:25]} 10. Be2 {[%emt 0:06:47]} g6 $146 {[%emt 0:06:20]} ({Predecessor:} 10... Bg4 11. h3 Bf5 12. Nh4 Be4 13. e6 fxe6 14. Be3 Qd6 15. a4 g6 16. a5 Nd7 {½-½ Hausdorf,H (2287)-Loginov,A (2377) WS MN/068 email 2011}) 11. O-O {[%emt 0:02:21] White has an edge.} Bg7 {[%emt 0:00:27]} 12. Bf4 {[%emt 0:04:34]} O-O {[%emt 0:01:10]} 13. h3 {[%emt 0:08:31]} Ra7 {[%emt 0:16:46]} (13... f6 $11) 14. Re1 {[%emt 0:05:37]} Bf5 {[%emt 0:07:52]} 15. Bd3 {[%emt 0:05:58]} Bxd3 {[%emt 0:00:55]} 16. Qxd3 {[%emt 0:00:07]} e6 {[%emt 0:00:12]} 17. b3 {[%emt 0:06:04]} Ra8 {[%emt 0:01:21]} 18. Qd2 {[%emt 0:00:45]} Rc8 {[%emt 0:01:03]} 19. Rac1 {[%emt 0:01:28]} Qe7 {[%emt 0:00:58]} 20. Qb2 {[%emt 0:06:58]} Rc7 {[%emt 0:07:07]} 21. Bg5 {[%emt 0:07:32]} Qd7 {[%emt 0:03:23]} 22. Qd2 {[%emt 0:01:13]} Rfc8 {[%emt 0:02:20]} 23. Ne2 {[%emt 0:03:30]} Qe8 {[%emt 0:07:43]} 24. g4 {[%emt 0:05:11]} Nd7 {[%emt 0:02:58]} 25. Kg2 {[%emt 0:00:52]} Qf8 {[%emt 0:01:39]} 26. h4 {[%emt 0:03:53][%cal Bh3h4,Bh4h5,Bh5h6][%mdl 32]} f5 {[%emt 0:10:15]} 27. gxf5 {[%emt 0:00:12]} Qxf5 {[%emt 0:00:29]} 28. Ng3 {[%emt 0:00:30]} Qf7 {[%emt 0:02:13]} 29. h5 {[%emt 0:09:48]} Nf8 {[%emt 0:01:03]} (29... Rf8 $6 30. Nh4 $16) (29... gxh5 $11 30. Rh1 Bf8 31. Nxh5 Bb4) 30. Rh1 {[%emt 0:00:46]} Ne7 $2 {[%emt 0:01:17]} (30... gxh5 $16 31. Nxh5 Ne7 32. Rxc7 Rxc7 33. Nf6+ Kh8) 31. Rxc7 {[%emt 0:02:24]} Rxc7 {[%emt 0:00:04] Black is weak on the dark squares} 32. h6 {[%emt 0:02:22]} Bh8 {[%emt 0:00:08] [#]} 33. Bxe7 {[%emt 0:01:14]} Qxe7 {[%emt 0:00:13]} 34. Rc1 {[%emt 0:00:16]} Rc6 {[%emt 0:01:08]} 35. Rxc6 {[%emt 0:00:15]} bxc6 {[%emt 0:00:01]} 36. Qa5 {[%emt 0:01:10]} g5 {[%emt 0:10:15][%cal Bg6g5,Bg5g4][%mdl 32]} 37. Qxa6 {[%emt 0:00:44]} g4 {[%emt 0:00:51]} 38. Nh2 {[%emt 0:00:10]} Qh4 {[%emt 0:00:43]} (38... c5 $142 39. Qa3 (39. Nxg4 Qh4 $16) 39... Qh4) 39. Qxc6 $18 {[%emt 0:02:06]} Qh3+ {[%emt 0:00:04]} 40. Kg1 {[%emt 0:00:31]} Qxh6 {[%emt 0:00:03]} 41. Qc2 {[%emt 0:04:38]} (41. Nxg4 Qf4 $16) 41... Qg5 {[%emt 0:01:26]} 42. Qe2 {[%emt 0:01:34]} h5 {[%emt 0:00:07][%cal Bh7h5,Bh5h4,Bh4g3][%mdl 32]} 43. Qe3 {[%emt 0:00:18]} Qg6 {[%emt 0:01:14]} 44. a4 {[%emt 0:01:02]} Bg7 {[%emt 0:00:27]} 45. a5 {[%emt 0:01:02]} h4 {[%emt 0:00:45]} 46. Ngf1 {[%emt 0:00:24]} Bh6 {[%emt 0:00:14]} 47. Qe2 {[%emt 0:01:23]} g3 {[%emt 0:00:22]} 48. fxg3 {[%emt 0:00:21]} hxg3 {[%emt 0:00:34]} 49. Ng4 {[%emt 0:00:28][%cal Oa5a6] a6! would now be deadly.} Bf4 $2 {[%emt 0:00:19]} (49... Bg7 50. Qd1 (50. Nxg3 Qb1+ 51. Kh2 Qxb3 $18) 50... Qf7 51. Nxg3 Qa7) 50. Nf6+ {[%emt 0:00:14]} Kf7 {[%emt 0:00:30]} 51. a6 {[%emt 0:02:07]} Qb1 {[%emt 0:00:40]} 52. a7 {[%emt 0:02:15]} Qa1 {[%emt 0:00:11]} 53. Qh5+ {[%emt 0:00:36]} Kg7 {[%emt 0:00:09]} 54. Qg4+ {[%emt 0:00:36]} (54. Ne8+ $142 Kg8 55. Qg4+ Bg5 56. Qxg5+ Ng6 57. Qxg6+ Kf8 58. Nf6 (58. Qxg3 Qxa7 59. Nf6 Qf7 $18) 58... Qxd4+ 59. Kh1) 54... Ng6 {[%emt 0:00:02]} 55. Nh5+ $2 {[%emt 0:01:17]} (55. Qxe6 $2 {loses.} Be3+ (55... Qxd4+ 56. Kh1 $14) 56. Kg2 Qa2+ (56... Qxd4 57. Qg8+ Kh6 58. Qh7+ Kg5 59. Qh5+ Kf4 60. a8=Q Qb2+ 61. Kh3) (56... Nf4+ $2 57. Kxg3 Qe1+ 58. Kg4 $19) 57. Kh3 (57. Kxg3 {leads to mate.} Qf2+ 58. Kg4 Qe2+ 59. Kh3 Qxf1+ 60. Kg3 Bf4+ 61. Kg4 Qg2+ 62. Kh5 Qg5#) 57... Nf4+ (57... Bxd4 58. Qg8+ Kh6 59. Ng4+ Kg5 60. Qd8+ Kf4 61. Qf6+ Ke4 62. Qxg6+ Kf3 63. Qd3+ Kf4 64. Nxg3) 58. Kg4 Qe2+ (58... Nxe6 $2 59. a8=Q $19) 59. Kf5 Nxe6 $19) (55. a8=Q $18 {and White stays clearly on top. White threatens Qg8+ and mate.} Be3+ 56. Kg2 Qxa8 57. Nxe3 (57. Nh5+ Kh6 $18)) 55... Kh6 $16 {[%emt 0:00:08]} 56. a8=Q $2 {[%emt 0:01:50][%mdl 8192]} (56. Nxf4 Qxd4+ 57. Kh1 Qe4+ 58. Ng2 (58. Kg1 Qd4+ 59. Kh1 Qe4+ 60. Kg1 Qd4+ $11) 58... Qxg4 $11) ({But not} 56. Nhxg3 $6 Qxa7 57. Ne2 (57. Qxe6 Qxd4+ 58. Kh1 Bxg3 $11) 57... Bxe5 $16) (56. Kg2 $16 Bg5 57. Nfxg3 (57. Qxe6 Qa2+ 58. Kxg3 Kxh5 $11)) 56... Qxd4+ {[%emt 0:00:37] Black mates.} 57. Kh1 {[%emt 0:01:12]} Qe4+ {[%emt 0:00:07]} 58. Kg1 {[%emt 0:00:39] [#]} Be3+ $1 {[%emt 0:00:30]} 59. Nxe3 {[%emt 0:00:07]} Qxe3+ {[%emt 0:00:01]} 60. Kh1 {[%emt 0:00:08]} Qe1+ {[%emt 0:00:02]} 61. Kg2 {[%emt 0:01:41]} Qf2+ {[%emt 0:00:04] Never resign too early!   Weighted Error Value: White=0.48/Black=0.67  Loses game:     	White=1     	Black=1      Mistake:       	---       	Black=4      Inaccurate:     	White=3     	Black=2      OK:         	White=22    	Black=18     Best:        	White=1     	Black=4} 0-1